bitfinex/quotes_SOLUSD_20250818
["timestamp","ask_amount","ask_price","bid_price","bid_amount"]
[1755510346704,50.75654277,181.4,181.36,11.61772358]
[1755510346883,50.75654277,181.4,181.34,31.54435152]
[1755510346884,47.08,181.4,181.34,31.54435152]
[1755510347084,11.61772358,181.43,181.38,11.61772358]
[1755510347394,50.75767619,181.42,181.39,0.71]
[1755510347716,3.67767619,181.41,181.37,0.71]
[1755510348034,11.61772358,181.38,181.34,0.03]
[1755510348316,50.75767619,181.37,181.34,0.03]
[1755510348610,3.67767619,181.36,181.34,0.03]
[1755510348782,47.08,181.37,181.34,0.03]
[1755510348986,3.67773195,181.36,181.34,0.03]
[1755510349208,52.59359836,181.37,181.34,0.03]
[1755510349525,3.6780493,181.36,181.34,0.03]
[1755510349822,52.59359836,181.37,181.34,0.03]
[1755510350117,3.6780493,181.36,181.34,0.03]
[1755510350416,47.06,181.35,181.34,0.03]
[1755510350622,50.73805014,181.35,181.34,0.03]
[1755510350909,16.22148113,181.4,181.34,12.35772358]
[1755510351213,54.8250519,181.39,181.35,11.61772358]
[1755510351517,3.67800858,181.38,181.35,11.61772358]
[1755510351686,3.67800858,181.37,181.35,11.61772358]
[1755510351990,50.73800858,181.36,181.35,12.32772358]
[1755510352184,47.06,181.36,181.35,11.61772358]
[1755510352799,17.13045562,181.4,181.35,11.61772358]
[1755510352998,54.82535827,181.39,181.34,0.03]
[1755510353209,3.67827792,181.38,181.35,11.61772358]
[1755510353402,3.67827792,181.38,181.35,12.32772358]
[1755510353403,3.67827792,181.37,181.35,12.32772358]
[1755510353588,47.06,181.38,181.34,11.64772358]
[1755510353792,47.06,181.38,181.34,0.03]
[1755510353793,50.71876029,181.37,181.34,0.03]
[1755510354006,3.67876029,181.36,181.34,0.03]
[1755510354208,3.67876029,181.35,181.34,0.03]
[1755510354713,3.67876029,181.35,181.34,11.64772358]
[1755510354898,3.67876029,181.35,181.34,0.74]
[1755510354899,47.04,181.35,181.34,0.74]
[1755510355224,47.04,181.35,181.34,11.64772358]
[1755510355526,50.72001852,181.35,181.34,0.03]
[1755510356195,47.04,181.35,181.34,11.64772358]
[1755510356417,47.04,181.35,181.34,12.35772358]
[1755510356594,47.04,181.35,181.34,0.74]
[1755510356788,47.04,181.35,181.34,12.35772358]
[1755510357225,47.04,181.35,181.34,0.74]
[1755510357518,47.04,181.35,181.34,12.35772358]
[1755510358620,5.51304898,181.39,181.34,12.35772358]
[1755510358849,3.68309816,181.38,181.35,0.71]
[1755510359120,0.06,181.41,181.37,11.61772358]
[1755510359293,50.70266885,181.4,181.39,11.61772358]
[1755510359489,3.68266885,181.4,181.35,5.51414534]
[1755510359691,47.02,181.39,181.36,0.71]
[1755510359926,0.06,181.41,181.36,0.71]
[1755510360096,0.06,181.41,181.39,11.61772358]
[1755510360426,50.70420607,181.4,181.39,11.61772358]
[1755510360600,3.68420607,181.4,181.39,11.61772358]
[1755510360806,47.02,181.4,181.39,12.32772358]
[1755510361010,47.02,181.4,181.39,11.61772358]
[1755510361209,50.70462576,181.4,181.39,11.61772358]
[1755510361514,50.70462576,181.4,181.38,11.61772358]
[1755510361843,0.06,181.41,181.36,5.51389181]
[1755510362142,47.02,181.39,181.38,0.71]
[1755510362664,47.0,181.39,181.35,0.71]
[1755510362875,47.0,181.39,181.36,0.71]
[1755510363433,0.06,181.41,181.36,0.71]
[1755510363628,47.0,181.38,181.36,0.71]
[1755510363858,47.0,181.38,181.37,11.61772358]
[1755510364369,0.06,181.41,181.37,12.32772358]
[1755510364537,0.06,181.41,181.38,0.71]
[1755510364736,0.06,181.41,181.4,11.61772358]
[1755510364940,0.06,181.41,181.4,12.32772358]
[1755510365234,47.06,181.41,181.4,0.71]
[1755510365477,0.06,181.41,181.4,17.84040274]
[1755510365762,0.06,181.43,181.42,26.0]
[1755510365965,47.04,181.43,181.42,37.61772358]
[1755510366260,47.04,181.43,181.42,38.32772358]
[1755510366468,47.04,181.43,181.42,0.71]
[1755510366660,47.04,181.43,181.42,38.32772358]
[1755510367362,0.06,181.43,181.42,43.83979501]
[1755510367864,0.06,181.43,181.42,38.32772358]
[1755510368157,47.04,181.43,181.42,43.83979501]
[1755510368363,0.06,181.43,181.42,43.83979501]
[1755510368967,47.04,181.43,181.42,32.22207143]
[1755510369139,47.04,181.43,181.42,26.71]
[1755510369345,47.04,181.43,181.42,12.32772358]
[1755510369537,0.06,181.43,181.42,17.83979501]
[1755510371074,0.06,181.43,181.42,6.22207143]
[1755510371374,0.06,181.43,181.42,17.83979501]
[1755510372365,0.06,181.43,181.42,0.71]
[1755510372956,0.06,181.43,181.38,0.71]
[1755510373161,0.06,181.43,181.36,5.51389501]
[1755510373162,0.06,181.43,181.41,11.61772358]
[1755510373365,0.06,181.43,181.36,17.275891]
[1755510373668,12.26772358,181.42,181.37,11.61772358]
[1755510373842,6.16237528,181.41,181.36,17.275891]
[1755510374044,15.10621557,181.4,181.36,16.565891]
[1755510374246,46.94,181.39,181.37,11.61772358]
[1755510374482,46.94,181.38,181.37,11.61772358]
[1755510374652,6.16212808,181.42,181.36,0.71]
[1755510374846,46.94,181.41,181.36,0.71]
[1755510375046,0.06,181.43,181.4,11.61772358]
[1755510375248,46.94,181.42,181.4,0.71]
[1755510375465,0.06,181.43,181.4,0.71]
[1755510375672,46.94,181.42,181.41,0.71]
[1755510375848,46.94,181.42,181.41,32.22237528]
[1755510376052,46.94,181.42,181.41,6.22237528]
[1755510376362,46.94,181.42,181.41,17.84009886]
[1755510376551,0.06,181.43,181.41,17.84009886]
[1755510376751,0.06,181.43,181.42,12.31772358]
[1755510377977,0.06,181.43,181.42,17.82979501]
[1755510378280,0.06,181.43,181.42,6.21207143]
[1755510378491,0.06,181.43,181.42,17.82979501]
[1755510379399,0.06,181.45,181.44,26.0]
[1755510379683,0.06,181.45,181.44,49.23544716]
[1755510379984,0.06,181.45,181.44,55.446911]
[1755510380170,0.06,181.47,181.45,15.10621557]
[1755510380364,0.06,181.49,181.48,37.61772358]
[1755510380880,0.06,181.49,181.48,38.31772358]
[1755510381056,54.56714279,181.55,181.54,11.61772358]
[1755510381452,46.92,181.57,181.54,12.31772358]
[1755510381786,0.06,181.58,181.56,11.61772358]
[1755510381953,0.06,181.58,181.57,11.61772358]
[1755510382357,0.06,181.58,181.57,12.31772358]
[1755510383260,0.06,181.58,181.57,26.7]
[1755510383581,0.06,181.58,181.57,38.31772358]
[1755510383751,0.06,181.58,181.57,26.7]
[1755510384075,0.06,181.6,181.59,41.10621557]
[1755510384279,0.06,181.66,181.6,25.10621557]
[1755510384482,0.06,181.66,181.6,10.7]
[1755510384650,0.06,181.66,181.65,26.72393915]
[1755510384847,0.06,181.66,181.65,15.10621557]
[1755510385050,0.04735544,181.68,181.65,0.7]
[1755510385278,0.04735544,181.68,181.61,0.55063047]
[1755510385279,0.04735544,181.68,181.66,0.7]
[1755510385479,0.04735544,181.68,181.67,0.7]
[1755510385961,0.04735544,181.68,181.67,43.82220973]
[1755510386369,0.04735544,181.68,181.67,26.7]
[1755510386570,0.04735544,181.68,181.67,37.61772358]
[1755510386771,0.04735544,181.68,181.67,26.0]
[1755510386952,0.73735544,181.68,181.61,0.7]
[1755510387155,0.73735544,181.68,181.63,11.61772358]
[1755510387383,0.73735544,181.68,181.67,11.61772358]
[1755510387384,0.04735544,181.68,181.67,11.61772358]
[1755510387559,0.04735544,181.68,181.67,0.7]
[1755510387881,0.73735544,181.68,181.62,26.0]
[1755510388281,0.73735544,181.68,181.64,11.61772358]
[1755510388591,0.04735544,181.68,181.63,0.7]
[1755510388753,0.04735544,181.68,181.64,0.7]
[1755510389579,0.04735544,181.68,181.62,5.5057531]
[1755510390171,0.04735544,181.68,181.65,26.0]
[1755510390367,0.04735544,181.68,181.67,11.61772358]
[1755510390773,0.04735544,181.68,181.67,12.31772358]
[1755510391290,0.04735544,181.68,181.67,11.61772358]
[1755510391676,0.04735544,181.68,181.67,12.31772358]
[1755510392076,0.04735544,181.68,181.67,17.82220973]
[1755510392769,1e-08,181.69,181.67,17.82220973]
[1755510392770,1e-08,181.69,181.67,32.9284253]
[1755510392969,1e-08,181.69,181.68,12.31772358]
[1755510393461,1e-08,181.69,181.68,0.7]
[1755510393661,1e-08,181.69,181.68,12.31772358]
[1755510394188,0.06,181.71,181.69,15.10621557]
[1755510394388,0.69,181.82,181.72,41.10621557]
[1755510394389,47.77,181.82,181.72,41.10621557]
[1755510394592,47.77,181.82,181.72,64.34166273]
[1755510394898,0.69,181.81,181.72,38.31772358]
[1755510395069,0.69,181.79,181.72,38.31772358]
[1755510395274,64.19770861,181.82,181.72,38.31772358]
[1755510395275,47.77,181.82,181.72,38.31772358]
[1755510395470,0.69,181.8,181.72,38.31772358]
[1755510396288,6.19067467,181.8,181.72,43.82069518]
[1755510396597,0.69,181.78,181.72,43.12069518]
[1755510397161,0.69,181.76,181.72,26.0]
[1755510397363,0.69,181.76,181.72,37.61772358]
[1755510397667,0.69,181.75,181.67,0.7]
[1755510397882,0.69,181.75,181.71,11.61772358]
[1755510398196,0.79,181.77,181.72,11.61772358]
[1755510398500,6.2915156,181.77,181.72,11.61772358]
[1755510398707,0.79,181.77,181.72,11.61772358]
[1755510399088,0.79,181.77,181.72,17.12069518]
[1755510399791,0.06,181.75,181.72,17.12069518]
[1755510400235,0.06,181.75,181.72,6.2029716]
[1755510400402,0.06,181.75,181.72,17.82069518]
[1755510403232,0.06,181.75,181.71,5.50321058]
[1755510403537,0.06,181.75,181.72,11.61772358]
[1755510404217,0.06,181.75,181.72,12.31772358]
[1755510404418,0.06,181.75,181.72,11.61772358]
[1755510404616,0.06,181.75,181.7,31.50352749]
[1755510404829,0.06,181.75,181.68,0.7]
[1755510405031,11.61772358,181.71,181.67,0.03]
[1755510405221,12.30772358,181.7,181.67,0.03]
[1755510405420,0.06,181.75,181.67,0.03]
[1755510405421,0.69,181.69,181.67,0.03]
[1755510405734,12.36772358,181.73,181.68,11.61772358]
[1755510405919,0.69,181.72,181.67,0.03]
[1755510406238,11.67772358,181.73,181.7,11.61772358]
[1755510406239,0.06,181.73,181.7,11.61772358]
[1755510406411,0.06,181.73,181.69,5.50383626]
[1755510406601,0.06,181.73,181.72,11.61772358]
[1755510406795,0.76,181.73,181.71,11.61772358]
[1755510407107,0.7,181.72,181.71,11.61772358]
[1755510407334,0.7,181.72,181.67,26.03]
[1755510407800,0.7,181.71,181.67,26.03]
[1755510408011,0.7,181.71,181.67,37.64772358]
[1755510408202,0.7,181.71,181.69,11.61772358]
[1755510408501,0.76,181.73,181.7,11.61772358]
[1755510408911,0.06,181.73,181.67,32.18448606]
[1755510409109,0.76,181.73,181.67,32.18448606]
[1755510409839,0.76,181.73,181.7,11.61772358]
[1755510410031,0.76,181.73,181.67,99.08448606]
[1755510410032,6.26266976,181.73,181.67,99.08448606]
[1755510410213,6.26266976,181.73,181.67,92.93]
[1755510410528,17.12099802,181.71,181.67,0.03]
[1755510410739,11.61772358,181.7,181.67,0.03]
[1755510410921,12.31772358,181.7,181.67,0.03]
[1755510411241,0.7,181.69,181.67,0.03]
[1755510411737,15.66258658,181.7,181.67,0.03]
[1755510412034,0.7,181.68,181.67,0.03]
[1755510412734,5.50393812,181.69,181.67,0.03]
[1755510412899,6.20393812,181.69,181.67,0.03]
[1755510413525,6.20327444,181.71,181.67,0.03]
[1755510413705,5.50327444,181.71,181.68,11.61772358]
[1755510413905,6.20327444,181.71,181.67,26.03]
[1755510414125,5.50327444,181.71,181.67,0.03]
[1755510414308,11.61772358,181.68,181.67,0.03]
[1755510414513,71.48109348,181.68,181.67,0.03]
[1755510414729,83.09881706,181.68,181.67,0.03]
[1755510415033,87.44430428,181.68,181.67,0.03]
[1755510416131,75.8265807,181.68,181.67,0.03]
[1755510416334,87.44430428,181.68,181.67,0.03]
[1755510416832,75.8265807,181.68,181.67,0.03]
[1755510417716,71.48109348,181.68,181.67,0.03]
[1755510418213,75.84530742,181.68,181.67,0.03]
[1755510418415,87.463031,181.68,181.67,0.03]
[1755510418956,87.46406717,181.68,181.67,0.03]
[1755510419336,71.78497989,181.68,181.67,0.03]
[1755510419544,75.15243719,181.68,181.67,0.03]
[1755510419909,54.54203845,181.68,181.67,0.03]
[1755510420135,50.47458115,181.68,181.67,0.03]
[1755510420339,81.97178398,181.68,181.67,0.03]
[1755510420537,54.54784483,181.68,181.67,0.03]
[1755510420725,7.72784483,181.68,181.67,12.29772358]
[1755510421048,10.16797401,181.73,181.67,12.29772358]
[1755510421049,46.82,181.71,181.67,12.29772358]
[1755510421231,46.82,181.71,181.68,0.65]
[1755510421454,46.82,181.71,181.7,11.61772358]
[1755510421620,46.82,181.71,181.7,0.65]
[1755510421823,5.56271047,181.73,181.67,0.03]
[1755510422122,7.74502916,181.72,181.68,11.617723]
[1755510422316,4.0763254,181.71,181.68,0.65]
[1755510422517,0.06,181.73,181.7,11.61772358]
[1755510422733,4.08105642,181.72,181.7,0.65]
[1755510422938,0.06,181.73,181.71,0.65]
[1755510423130,0.06,181.73,181.71,26.65]
[1755510423742,0.06,181.73,181.72,0.65]
[1755510423923,0.06,181.73,181.72,12.26772358]
[1755510424516,0.06,181.73,181.72,17.77069518]
[1755510424713,0.06,181.73,181.72,29.38841876]
[1755510425841,0.06,181.74,181.72,29.38841876]
[1755510426050,0.06,181.74,181.73,12.26772358]
[1755510427024,0.06,181.74,181.73,32.15266879]
[1755510427234,0.06,181.74,181.73,43.77039237]
[1755510428746,0.06,181.74,181.73,45.97528137]
[1755510428959,0.06,181.74,181.73,2.854889]
[1755510429153,3.74995973,181.74,181.73,13.82261258]
[1755510429945,3.74995973,181.74,181.73,11.61772358]
[1755510430356,3.74995973,181.74,181.73,12.26772358]
[1755510431225,0.06,181.74,181.73,12.26772358]
[1755510431430,3.74984736,181.74,181.73,11.61772358]
[1755510431756,3.74984736,181.74,181.73,12.26772358]
[1755510432137,0.06,181.74,181.73,12.26772358]
[1755510432342,0.06,181.74,181.72,3.749847]
[1755510432657,0.06,181.74,181.73,11.61772358]
[1755510432869,0.06,181.74,181.73,0.65]
[1755510433032,0.06,181.74,181.73,12.26772358]
[1755510434462,0.06,181.74,181.73,17.77039237]
[1755510434830,0.06,181.74,181.73,6.15266879]
[1755510435152,0.06,181.74,181.73,17.77039237]
[1755510435845,0.06,181.75,181.73,17.77039237]
[1755510436049,0.06,181.76,181.74,12.26772358]
[1755510436248,0.06,181.78,181.76,5.50176056]
[1755510436430,0.06,181.78,181.77,37.61772358]
[1755510436758,0.06,181.78,181.77,38.30772358]
[1755510437458,0.06,181.78,181.77,43.80918146]
[1755510437673,0.06,181.78,181.77,6.19145788]
[1755510437873,0.06,181.78,181.77,17.80918146]
[1755510439774,0.06,181.78,181.77,20.01334246]
[1755510439952,0.06,181.78,181.77,34.39561888]
[1755510440148,0.06,181.78,181.77,20.01334246]
[1755510440773,0.06,181.78,181.77,19.32334246]
[1755510440981,0.06,181.78,181.77,13.82188458]
[1755510441505,0.06,181.78,181.77,19.32334246]
[1755510442064,0.06,181.78,181.77,8.39561888]
[1755510442269,0.06,181.78,181.77,20.01334246]
[1755510442751,0.06,181.78,181.77,13.82188458]
[1755510442952,0.06,181.78,181.77,2.204161]
[1755510443154,0.06,181.78,181.77,39.82188458]
[1755510443674,0.06,181.78,181.77,37.61772358]
[1755510444447,0.06,181.78,181.77,43.80918146]
[1755510444760,0.06,181.78,181.77,37.61772358]
[1755510445282,0.031117,181.8,181.77,38.30772358]
[1755510445482,0.031117,181.8,181.79,11.61772358]
[1755510446591,0.031117,181.8,181.79,17.80857621]
[1755510446965,0.031117,181.8,181.79,23.30670721]
[1755510449093,0.031117,181.8,181.79,11.68898363]
[1755510449394,0.031117,181.8,181.79,23.30670721]
[1755510451198,0.06,181.82,181.8,15.10621557]
[1755510451362,0.06,181.82,181.81,11.61772358]
[1755510451562,0.06,181.84,181.83,26.0]
[1755510451857,0.06,181.84,181.83,52.72393915]
[1755510452063,0.06,181.84,181.83,58.91358167]
[1755510452278,0.06,181.86,181.83,58.91358167]
[1755510452489,0.06,181.86,181.85,11.61772358]
[1755510452911,0.06,181.86,181.85,12.30772358]
[1755510453695,0.06,181.86,181.85,11.61772358]
[1755510454380,0.06,181.86,181.85,28.14164258]
[1755510457103,0.06,181.86,181.85,22.71295666]
[1755510457305,0.06,181.86,181.85,34.33068024]
[1755510457665,0.06,181.86,181.85,101.23068024]
[1755510458677,0.06,181.86,181.85,34.33068024]
[1755510460266,0.06,181.86,181.85,48.71295666]
[1755510460469,0.06,181.86,181.85,60.33068024]
[1755510460671,0.06,181.86,181.85,48.71295666]
[1755510460869,0.06,181.86,181.85,60.33068024]
[1755510461493,11.69111549,181.94,181.89,26.0]
[1755510461696,0.72,181.96,181.93,11.61772358]
[1755510461874,3.6739381,181.99,181.95,11.61772358]
[1755510462074,0.72,181.99,181.97,11.61772358]
[1755510462281,0.72,181.98,181.97,11.61772358]
[1755510462476,3.6739381,182.0,181.97,11.61772358]
[1755510462677,4.3939381,182.0,181.95,10.99033898]
[1755510462885,5.49451151,182.0,181.98,11.61772358]
[1755510463088,9.16814452,182.0,181.95,17.11210858]
[1755510463278,20.7858681,182.0,181.95,11.61772358]
[1755510463484,3.67363301,181.99,181.95,11.61772358]
[1755510464072,3.67363301,181.98,181.95,11.61772358]
[1755510464378,5.49510935,181.98,181.95,11.61772358]
[1755510464801,5.49510935,181.98,181.93,11.61772358]
[1755510465105,9.16874236,181.98,181.95,11.61772358]
[1755510465397,9.16852679,181.99,181.96,11.61772358]
[1755510465602,3.67363301,181.99,181.98,11.61772358]
[1755510465776,52.05454464,182.0,181.98,11.61772358]
[1755510465777,46.56,182.0,181.98,11.61772358]
[1755510465981,46.56,182.0,181.99,11.61772358]
[1755510466681,46.56,182.0,181.96,0.69]
[1755510467007,0.06,181.99,181.95,5.49593092]
[1755510467203,0.06,181.99,181.98,11.61772358]
[1755510467385,0.06,181.99,181.97,11.61772358]
[1755510467989,0.06,181.99,181.98,11.61772358]
[1755510468587,0.06,181.99,181.98,43.76283293]
[1755510468794,0.06,181.99,181.98,38.26772358]
[1755510469114,0.06,181.99,181.98,43.76283293]
[1755510470002,0.06,181.99,181.98,38.26772358]
[1755510471199,0.06,181.99,181.98,37.61772358]
[1755510471411,0.06,181.99,181.98,38.26772358]
[1755510471722,0.06,181.99,181.98,43.76283293]
[1755510473805,0.77428504,182.05,181.98,69.11832989]
[1755510474009,0.77428504,182.05,182.04,11.61772358]
[1755510474416,0.77428504,182.05,182.04,17.11102175]
[1755510474613,0.77428504,182.05,182.04,17.76102175]
[1755510474809,0.77428504,182.05,182.04,23.25259475]
[1755510475709,0.61,182.14,182.07,26.0]
[1755510475908,6.10041939,182.14,182.07,26.65]
[1755510476112,6.10041939,182.14,182.1,11.61772358]
[1755510476316,0.61,182.14,182.12,11.61772358]
[1755510477313,0.61,182.14,182.09,5.49165429]
[1755510477519,6.10031146,182.14,182.12,11.61772358]
[1755510477922,12.22772358,182.13,182.07,26.0]
[1755510478222,0.06,182.11,182.1,11.61772358]
[1755510478402,0.06,182.09,182.07,31.49239042]
[1755510478596,0.06,182.09,182.08,11.61772358]
[1755510479041,0.06,182.09,182.07,26.0]
[1755510479212,0.06,182.09,182.08,11.61772358]
[1755510480230,47.07,182.09,182.03,11.617724]
[1755510480412,0.61,182.08,182.03,11.61772358]
[1755510480726,0.61,182.07,182.04,11.61772358]
[1755510480933,12.22772358,182.07,182.02,11.61772358]
[1755510481299,0.61,182.06,182.01,17.11192719]
[1755510481712,0.61,182.06,182.01,17.76192719]
[1755510481910,0.61,182.06,182.01,6.14420361]
[1755510482314,0.61,182.06,182.01,17.76192719]
[1755510482532,0.61,182.06,182.01,6.14420361]
[1755510482704,11.61772358,182.03,181.94,13.74038574]
[1755510482910,11.61772358,182.01,181.96,11.61772358]
[1755510483113,11.61772358,182.01,181.96,38.26772358]
[1755510483330,0.61,182.02,181.96,26.65]
[1755510483518,46.38,182.03,181.99,11.61772358]
[1755510483850,46.38,182.03,181.99,0.65]
[1755510484009,46.38,182.03,181.99,12.26772358]
[1755510484445,46.38,182.03,181.99,0.65]
[1755510484641,46.99,182.03,181.96,26.65]
[1755510484845,46.99,182.03,181.98,11.61772358]
[1755510485158,58.60772358,182.03,181.96,26.65]
[1755510485306,0.61,182.02,181.98,11.61772358]
[1755510485637,0.06,182.02,181.98,11.61772358]
[1755510485842,0.06,182.02,181.99,11.61772358]
[1755510486142,0.06,182.02,181.99,0.65]
[1755510486329,0.06,182.02,182.01,37.61772358]
[1755510486831,0.06,182.02,182.01,38.26772358]
[1755510487828,0.06,182.02,182.01,43.76192719]
[1755510488214,0.06,182.02,182.01,43.11192719]
[1755510488411,0.06,182.02,182.01,43.76192719]
[1755510488908,0.06,182.02,182.01,37.61772358]
[1755510489306,0.06,182.02,182.01,26.0]
[1755510491155,0.06,182.02,181.99,0.65]
[1755510491156,0.67,182.02,181.96,83.411186]
[1755510491309,0.06,182.02,181.98,11.61772358]
[1755510491509,0.06,182.02,181.99,11.61772358]
[1755510491725,0.06,182.02,181.98,11.61772358]
[1755510492037,0.06,182.02,181.98,12.26772358]
[1755510492344,0.06,182.02,181.98,8.06636622]
[1755510492518,0.06,182.02,181.97,5.49532242]
[1755510492727,0.7,182.01,181.96,98.3956566]
[1755510492905,0.7,182.01,181.96,106.46202282]
[1755510494015,12.97043136,182.02,181.97,0.65]
[1755510494235,13.67043136,182.02,181.97,8.06636622]
[1755510494608,6.25406514,182.02,181.97,8.06636622]
[1755510495342,6.25406514,182.02,181.97,0.65]
[1755510495343,13.67043136,182.02,181.97,0.65]
[1755510495636,13.67043136,182.02,181.97,8.06636622]
[1755510496008,13.67043136,182.02,181.97,7.41636622]
[1755510496206,13.67043136,182.02,181.98,0.66]
[1755510496431,6.25406514,182.02,181.98,0.66]
[1755510496637,13.67043136,182.02,181.98,0.66]
[1755510497037,13.67043136,182.02,181.97,7.41636622]
[1755510497038,0.66,182.01,181.97,7.41636622]
[1755510497247,12.97043136,182.02,181.98,0.66]
[1755510497426,5.55406514,182.02,181.98,0.66]
[1755510498011,5.55406514,182.02,181.99,0.66]
[1755510498210,5.55406514,182.02,181.98,7.41636622]
[1755510498411,5.55406514,182.02,181.98,0.66]
[1755510498643,12.97043136,182.02,181.98,0.66]
[1755510498865,12.97043136,182.02,181.97,33.41636622]
[1755510498866,13.63043136,182.02,181.97,33.41636622]
[1755510499013,13.63043136,182.02,181.95,0.03]
[1755510499014,7.41636622,181.98,181.95,0.03]
[1755510499213,53.65636622,181.98,181.95,0.03]
[1755510499443,46.24,181.98,181.96,0.66]
[1755510500135,46.24,181.98,181.95,7.44636622]
[1755510500322,46.24,181.98,181.95,8.10636622]
[1755510500525,46.24,181.98,181.95,0.69]
[1755510500736,8.07636622,181.97,181.95,0.03]
[1755510501048,54.31636622,181.98,181.95,0.03]
[1755510501220,59.15163228,181.98,181.95,0.03]
[1755510501627,51.73526606,181.98,181.95,0.03]
[1755510502533,46.9,181.98,181.95,0.03]
[1755510503026,46.24,181.98,181.95,0.03]
[1755510503344,0.06,182.02,181.95,0.03]
[1755510503345,0.06,182.02,181.98,5.49510935]
[1755510503533,0.72,182.02,181.99,7.41636622]
[1755510503722,0.72,182.02,181.97,26.0]
[1755510503723,0.72,182.02,181.98,7.41636622]
[1755510504245,0.72,182.02,181.97,26.0]
[1755510504246,46.26,182.02,181.99,0.66]
[1755510504439,46.26,182.02,182.01,7.41636622]
[1755510505225,46.26,182.02,182.01,12.91056983]
[1755510505526,46.26,182.02,181.99,26.0]
[1755510505721,46.92,182.02,181.99,33.41636622]
[1755510506043,52.41390465,182.02,181.99,26.0]
[1755510507846,46.92,182.02,181.99,7.41636622]
[1755510508156,46.26,182.02,181.97,32.155391]
[1755510508531,46.26,182.02,181.99,7.41636622]
[1755510509065,46.26,182.02,181.98,5.49494998]
[1755510509238,46.26,182.02,182.0,7.41636622]
[1755510509420,46.26,182.02,181.98,6.15494998]
[1755510509421,46.26,182.02,182.01,7.41636622]
[1755510509622,46.26,182.02,182.01,8.07636622]
[1755510510646,0.06,182.02,182.01,34.07636622]
[1755510511021,0.06,182.02,182.01,39.57056983]
[1755510512051,0.06,182.02,182.01,32.15420361]
[1755510512258,0.06,182.02,182.01,39.57056983]
[1755510516837,0.06,182.04,182.02,15.10621557]
[1755510517142,0.06,182.04,182.03,7.41636622]
[1755510517341,0.06,182.04,182.03,8.07636622]
[1755510517943,0.06,182.04,182.03,13.56996617]
[1755510519251,0.06,182.04,182.03,19.06095317]
[1755510519445,0.06,182.04,182.03,13.56996617]
[1755510520347,0.06,182.07,182.06,33.41636622]
[1755510520549,0.66,182.16,182.1,26.0]
[1755510520848,0.66,182.16,182.13,7.41636622]
[1755510521357,0.66,182.21,182.15,7.41636622]
[1755510521554,0.66,182.21,182.14,0.66]
[1755510521753,0.66,182.21,182.16,7.41636622]
[1755510521961,12.90423802,182.22,182.16,7.41636622]
[1755510522143,0.66,182.2,182.16,12.90594859]
[1755510522642,0.66,182.19,182.14,33.41636622]
[1755510522967,5.28702594,182.23,182.17,7.41636622]
[1755510522968,15.16842409,182.23,182.17,7.41636622]
[1755510523153,15.16842409,182.23,182.18,7.41636622]
[1755510523343,0.66,182.22,182.18,7.41636622]
[1755510523666,0.66,182.21,182.16,33.41636622]
[1755510523974,0.66,182.21,182.16,38.90587244]
[1755510524355,0.66,182.21,182.18,7.41636622]
[1755510524555,0.66,182.21,182.17,7.41636622]
[1755510525438,14.50842409,182.23,182.17,7.41636622]
[1755510525643,15.16842409,182.23,182.17,7.41636622]
[1755510525853,7.75205787,182.23,182.17,7.41636622]
[1755510526054,15.16842409,182.23,182.17,7.41636622]
[1755510526581,7.41636622,182.22,182.17,7.41636622]
[1755510526775,0.7,182.21,182.17,7.41636622]
[1755510527141,0.7,182.2,182.17,26.0]
[1755510527349,7.41636622,182.22,182.17,26.0]
[1755510527575,0.7,182.21,182.17,26.0]